Cogmind - Beta 9.2 *** ADVENTURER MODE // 2019.12.15 @ 19:42:19 Player: Sir Arcana Result: Destroyed by G-50 Soldier with Heavy Laser Performance ------------- Evolutions (3) 1500 Regions Visited (8) 1600 Robots Destroyed (51) 255 Value Destroyed (1662) 1662 Prototype IDs (23) 460 Alien Tech Used (0) 0 Bonus (1000) 1000 TOTAL SCORE: 6477 Bonus ------- Entered Garrisons 200 Used RIF Installer 500 Aligned with FarCom 300 Cogmind --------- Core Integrity 0/700 Matter 300/300 Energy 83/100 System Corruption 10% Temperature Cool (9) Movement Core (600) Ox11 Location -7/Factory Parts ------- > --- POWER (2) -------- (None) > --- PROPULSION (4) --- (None) > --- UTILITY (5) ------ High-capacity Storage Unit Enhanced Optical Array Relay Coupler [NC] (26) > --- WEAPON (2) ------- Chainsword > --- INVENTORY (12) --- Light Angular Momentum Engine Improved Heat Sink Improved Heat Sink Sensor Array Maneuvering Thrusters Hardened Light Armor Plating Improved Light Armor Plating Improved Light Armor Plating Improved Light Armor Plating Improved Light Armor Plating Improved Medium Armor Plating Peak State ------------ > --- POWER ------------ Improved Deuterium Engine Improved Deuterium Engine > --- PROPULSION ------- Armored Treads Flexi-carbon Leg Flexi-carbon Leg Wheel > --- UTILITY ---------- Improved Heat Sink High-capacity Storage Unit Enhanced Optical Array Improved Light Armor Plating Improved Medium Armor Plating > --- WEAPON ----------- Guided Plasma Cannon Gauss Rifle > --- INVENTORY -------- Heavy Ion Engine Improved Deuterium Engine Light Angular Momentum Engine Improved Heat Sink Improved Heat Sink Sensor Array Hardened Light Armor Plating Improved Medium Armor Plating [Rating: 51] Favorites ----------- Power Improved Deuterium Engine Engine Improved Deuterium Engine Power Core Light Nuclear Core Propulsion Armored Treads Treads Armored Treads Leg Aluminum Leg Wheel Compact Wheel Utility High-capacity Storage Unit Device Improved Heat Sink Storage High-capacity Storage Unit Processor Enhanced Optical Array Hackware Relay Coupler [NC] Protection Hardened Light Armor Plating Weapon Guided Plasma Cannon Energy Gun Beamcaster Energy Cannon Guided Plasma Cannon Ballistic Gun Autogun Special Weapon Remote Datajack Slashing Weapon Chainsword Build | -11 -10 -10 -10 -9 -8 -7 -7 -7 ------- Run | Scr Mat Min Exi Min Mat Fac Gar Fac Slots Evolved 6 | . . . . . 4 2 . . Power 1 | . . . . . 1 . . . Propulsion 2 | . . . . . 1 1 . . Utility 3 | . . . . . 2 1 . . Weapon . | . . . . . . . . . Parts Attached 57 | 6 4 6 3 5 10 10 5 8 Power 13 | 1 1 1 . 1 2 4 1 2 Engine 9 | 1 1 . . 1 . 4 1 1 Core 4 | . . 1 . . 2 . . 1 Reactor . | . . . . . . . . . Propulsion 13 | 2 . 2 2 . 3 1 2 1 Treads 2 | . . . 2 . . . . . Leg 8 | 2 . 2 . . 1 . 2 1 Wheel 3 | . . . . . 2 1 . . Hover . | . . . . . . . . . Flight . | . . . . . . . . . Utility 19 | 1 3 1 . 2 5 3 1 3 Device 7 | . 2 . . 1 2 1 . 1 Storage 3 | 1 . 1 . 1 . . . . Processor 1 | . . . . . . 1 . . Hackware 1 | . . . . . . . . 1 Protection 7 | . 1 . . . 3 1 1 1 Artifact . | . . . . . . . . . Weapon 12 | 2 . 2 1 2 . 2 1 2 Energy Gun 3 | 1 . 1 . . . 1 . . Energy Cannon 2 | . . . 1 . . . 1 . Ballistic Gun 5 | 1 . 1 . 2 . 1 . . Ballistic Cannon . | . . . . . . . . . Launcher . | . . . . . . . . . Special Weapon 1 | . . . . . . . . 1 Impact Weapon . | . . . . . . . . . Slashing Weapon 1 | . . . . . . . . 1 Piercing Weapon . | . . . . . . . . . Special Melee Weapon . | . . . . . . . . . Unidentified Prototypes 1 | . . . . . . 1 . . Parts Lost 21 | . . . . . . 1 12 8 Power 5 | . . . . . . . 2 3 Propulsion 7 | . . . . . . . 5 2 Utility 5 | . . . . . . 1 2 2 Weapon 4 | . . . . . . . 3 1 Highest Loss Streak 10 | . . . . . . 1 10 8 Average Slot Usage (%) 94 | . 98 100 100 100 100 99 82 66 Engine 9 | . 13 1 . 13 9 13 12 6 Core 5 | . . 12 14 . 9 1 . 6 Treads 11 | . . . 17 28 18 15 9 . Leg 8 | . 28 28 10 . . . 4 10 Wheel 5 | . . . . . 9 15 9 . Device 8 | . 6 . . 13 18 14 7 5 Storage 10 | . 14 14 14 14 9 7 7 7 Processor 2 | . . . . . . 4 7 7 Protection 9 | . 7 14 14 . 9 9 10 9 Energy Gun 5 | . 14 14 14 . . 2 4 . Energy Cannon 4 | . . . 8 14 9 4 . . Ballistic Gun 8 | . 14 14 5 13 9 7 4 . Naked Turns . | . . . . . . . . . Heaviest Build 77 | 11 20 26 33 55 68 77 77 58 Greatest Support 42 | 20 20 30 42 42 42 42 40 33 Greatest Overweight (x) 16 | 3 . 1 . 1 6 2 2 16 Average Overweight (x) 1 | . . . . . 1 1 1 1 Largest Inventory Capacity 12 | 6 6 8 8 12 12 12 12 12 Average Capacity 10 | 5 6 7 8 9 12 12 12 12 Most Carried 12 | 4 6 8 8 11 12 12 12 12 Average Carried 8 | 3 4 6 8 8 8 11 10 10 Final Capacity 12 | 6 6 8 8 12 12 12 12 12 Final Carried 12 | 4 6 8 8 11 12 12 7 11 Class Distribution -------------------- 70% | Mutant 29% | Scavenger-Mutant Dominant Class ---------------- Mutant | -10/Materials Scavenger-Mutant | -10/Mines Mutant | -10/Exiles Mutant | -9/Mines Scavenger-Mutant | -8/Materials Mutant | -7/Factory Mutant | -7/Garrison Mutant | -7/Factory Resources | -11 -10 -10 -10 -9 -8 -7 -7 -7 ----------- Run | Scr Mat Min Exi Min Mat Fac Gar Fac Matter Collected 946 | 244 86 96 . 86 70 246 65 53 Remotely . | . . . . . . . . . Salvage Created 2032 | . 185 232 . 273 311 760 161 110 Parts 104 | . 16 14 . 11 11 40 7 5 Haulers Intercepted . | . . . . . . . . . Recyclers Shooed . | . . . . . . . . . Parts Field Recycled . | . . . . . . . . . Retrieved Matter . | . . . . . . . . . Parts Self-Destructed . | . . . . . . . . . Prevented . | . . . . . . . . . Kills | -11 -10 -10 -10 -9 -8 -7 -7 -7 ------- Run | Scr Mat Min Exi Min Mat Fac Gar Fac Combat Hostiles Destroyed 44 | . 5 5 . 11 6 12 3 2 Melee 2 | . . . . . . . . 2 Guns 23 | . 5 5 . 1 . 9 3 . Cannons 17 | . . . . 10 5 2 . . Classes Destroyed 11 | . 3 1 . 2 2 3 . . Worker 3 | . . . . . . 3 . . Recycler 1 | . . . . . . 1 . . Operator 1 | . . . . . 1 . . . Watcher 2 | . 2 . . . . . . . Swarmer 5 | . 3 . . . . 2 . . Grunt 24 | . 2 4 . 5 4 6 2 1 Brawler 3 | . . . . . 1 . 1 1 Sentry 5 | . . 1 . . 1 3 . . Demolisher 1 | . . . . 1 . . . . Programmer 1 | . . . . . . 1 . . Assembled 5 | . . . . 5 . . . . Best Kill Streak 7 | . 4 2 . 4 5 7 2 2 Combat Bots Only 5 | . 3 2 . 4 5 3 2 2 Max Kills in Single Turn 2 | . 1 1 . 1 1 2 1 1 Gunslinging 1 | . . . . . . 1 . . Exploded . | . . . . . . . . . Melee 1 | . . . . . . . . 1 Uniques/NPCs Destroyed . | . . . . . . . . . Combat | -11 -10 -10 -10 -9 -8 -7 -7 -7 -------- Run | Scr Mat Min Exi Min Mat Fac Gar Fac Damage Taken 3849 | . 63 154 . 288 273 774 1144 1153 Core 804 | . 15 18 . 38 33 92 233 375 Absorbed by Shields . | . . . . . . . . . Core Remaining (%) 88 | 100 . . . 71 94 . . . Volleys Fired 128 | . 14 12 . 28 23 40 10 1 Largest 2 | . 2 2 . 1 1 2 2 1 Hottest 120 | . 60 98 . 120 120 120 103 30 Shots Fired 173 | . 24 24 . 28 23 56 17 1 Gun 114 | . 24 24 . 3 . 46 17 . Cannon 58 | . . . . 25 23 10 . . Launcher . | . . . . . . . . . Special 1 | . . . . . . . . 1 Kinetic 63 | . 10 12 . 2 . 29 10 . Thermal 87 | . . 4 . 26 23 27 7 . Explosive . | . . . . . . . . . Electromagnetic 22 | . 14 8 . . . . . . Robot Hit Streak 40 | . 9 17 . 22 32 40 40 2 Robot Miss Streak 3 | . 3 1 . . . 2 1 . Penetration Max 1 | . . . . . . 1 . . Secondary Targets 6 | . . 3 . . . 3 . . Max Gunslinging Chain 1 | . . 1 . . . 1 . . Shots Hit Robots 135 | . 15 21 . 16 10 48 15 10 Core Hits 75 | . 9 9 . 12 6 24 9 6 Critical Hits 4 | . . . . 2 . 1 . 1 Critical Kills 2 | . . . . 2 . . . . Critical Parts Destroyed 2 | . . . . . . 1 . 1 Melee Attacks 10 | . . . . . . . . 10 Impact . | . . . . . . . . . Slashing 10 | . . . . . . . . 10 Piercing . | . . . . . . . . . Sneak Attacks . | . . . . . . . . . Combat Hostiles . | . . . . . . . . . Follow-up Attacks . | . . . . . . . . . Damage Inflicted 4142 | . 218 278 . 931 776 1313 353 273 Guns 1868 | . 218 278 . 50 . 976 346 . Cannons 1994 | . . . . 881 776 337 . . Explosions . | . . . . . . . . . Melee 273 | . . . . . . . . 273 Ramming 7 | . . . . . . . 7 . Kinetic 1044 | . 59 114 . 30 . 643 198 . Thermal 2558 | . . 63 . 901 776 670 148 . Explosive . | . . . . . . . . . Electromagnetic 260 | . 159 101 . . . . . . Impact . | . . . . . . . . . Slashing 273 | . . . . . . . . 273 Piercing . | . . . . . . . . . Highest Corruption 10 | . . . . . . 2 2 10 Average Corruption 2 | . . . . . . 1 2 3 Corruption Purged . | . . . . . . . . . Effects 13 | . . . . . . . 2 11 Message Errors 4 | . . . . . . . 1 3 Matter Fused 1 | . . . . . . . . 1 Heat Flow Errors 2 | . . . . . . . . 2 Energy Discharges 1 | . . . . . . . . 1 Data Loss (minor) 4 | . . . . . . . 1 3 Targeting Errors 1 | . . . . . . . . 1 Overload Shots . | . . . . . . . . . Overflow Damage 93 | . . . . 48 22 23 . . Projectiles 93 | . . . . 48 22 23 . . Explosions . | . . . . . . . . . Melee . | . . . . . . . . . Knockbacks . | . . . . . . . . . Impact . | . . . . . . . . . Kinetic . | . . . . . . . . . Secondary . | . . . . . . . . . Self-Inflicted Damage 1 | . . . . . . . 1 . Shots . | . . . . . . . . . Rammed 1 | . . . . . . . 1 . Targets Rammed 2 | . . . . . . . 2 . Kicked 1 | . . . . . . . 1 . Crushed . | . . . . . . . . . Highest Temperature 406 | . 54 240 . 406 374 242 228 176 Average Temperature 106 | . 27 89 . 144 150 62 109 68 Received Heat Transfer 2067 | . 6 93 . 234 198 285 765 486 Effects 5 | . . 1 . 3 1 . . . Shutdowns 1 | . . . . 1 . . . . Energy Bleed 3 | . . 1 . 1 1 . . . Short Circuit 1 | . . . . 1 . . . . Siege Activations . | . . . . . . . . . Robots Corrupted . | . . . . . . . . . Combat Hostiles . | . . . . . . . . . Parts Fried 3 | . 3 . . . . . . . Impact Corruptions . | . . . . . . . . . Robots Melted 2 | . . . . . 1 1 . . Combat Hostiles 2 | . . . . . 1 1 . . Parts Melted 5 | . . . . 1 4 . . . Heat Transferred 5559 | . . 111 . 2037 1760 1392 259 . Parts Sabotaged . | . . . . . . . . . Parts Stolen . | . . . . . . . . . Parts Stripped . | . . . . . . . . . Power Chain Reactions . | . . . . . . . . . Missiles Intercepted . | . . . . . . . . . Alert | -11 -10 -10 -10 -9 -8 -7 -7 -7 ------- Run | Scr Mat Min Exi Min Mat Fac Gar Fac Peak Influence 320 | . 191 147 . 155 145 320 139 63 Average Influence 72 | . 81 117 . 52 74 69 106 32 Maximum Alert Level 1 | . . . . . . 1 . . Low Security (%) 96 | 100 100 100 . 100 100 85 100 100 Level 1 3 | . . . . . . 14 . . Level 2 . | . . . . . . . . . Level 3 . | . . . . . . . . . Level 4 . | . . . . . . . . . Level 5 . | . . . . . . . . . High Security . | . . . . . . . . . Max Security . | . . . . . . . . . Squads Dispatched 12 | . . 1 . . . 7 . 4 Investigation 4 | . . 1 . . . 2 . 1 Extermination 2 | . . . . . . 1 . 1 Reinforcement 2 | . . . . . . 1 . 1 Assault 1 | . . . . . . . . 1 Garrison 3 | . . . . . . 3 . . Intercept . | . . . . . . . . . Construction Impeded . | . . . . . . . . . Haulers Reinforced . | . . . . . . . . . Stealth | -11 -10 -10 -10 -9 -8 -7 -7 -7 --------- Run | Scr Mat Min Exi Min Mat Fac Gar Fac Distress Signals 1 | . 1 . . . . . . . Communications Jammed 2 | . . . . . . . . 2 Distress Signals 2 | . . . . . . . . 2 Times Spotted 99 | . 10 6 . 28 6 17 19 13 Peak Tracking Total 13 | . 4 2 . 13 5 4 11 10 Tactical Retreats 8 | . 1 . . 3 1 2 1 . Traps | -11 -10 -10 -10 -9 -8 -7 -7 -7 ------- Run | Scr Mat Min Exi Min Mat Fac Gar Fac Traps Triggered 4 | . . . . . . 2 . 2 Indirectly . | . . . . . . . . . Trap Hack Attempts . | . . . . . . . . . Triggered . | . . . . . . . . . Disarmed . | . . . . . . . . . Reprogrammed . | . . . . . . . . . Reused . | . . . . . . . . . Traps Extracted . | . . . . . . . . . Installed . | . . . . . . . . . Triggered . | . . . . . . . . . Exploded 2 | . . . 2 . . . . . Machines | -11 -10 -10 -10 -9 -8 -7 -7 -7 ---------- Run | Scr Mat Min Exi Min Mat Fac Gar Fac Machines Disabled . | . . . . . . . . . Max in Single Turn . | . . . . . . . . . Garrison Access 1 | . . . . . . . . 1 Machines Sabotaged . | . . . . . . . . . Garrisons Compromised . | . . . . . . . . . Overloaded Fab Kills . | . . . . . . . . . Fab Network Shutdowns . | . . . . . . . . . Hacking | -11 -10 -10 -10 -9 -8 -7 -7 -7 --------- Run | Scr Mat Min Exi Min Mat Fac Gar Fac Machines Accessed 14 | . 5 1 1 . 2 4 . 1 Terminals 10 | . 5 . . . 2 2 . 1 Fabricators 1 | . . . . . . 1 . . Repair Stations . | . . . . . . . . . Recycling Units . | . . . . . . . . . Scanalyzers . | . . . . . . . . . Garrison Access 1 | . . . . . . 1 . . Total Hacks 20 | . 6 1 1 . 3 6 . 3 Successful 12 | . 5 1 1 . 2 3 . . Failed 8 | . 1 . . . 1 3 . 3 Catastrophic 2 | . . . . . . 1 . 1 Database Lockouts . | . . . . . . . . . Manual 1 | . . . 1 . . . . . Terminals 15 | . 6 . . . 3 3 . 3 Fabricators 2 | . . . . . . 2 . . Repair Stations . | . . . . . . . . . Recycling Units . | . . . . . . . . . Scanalyzers . | . . . . . . . . . Garrison Access 1 | . . . . . . 1 . . Terminal Hacks 11 | . 5 1 1 . 2 2 . . Open Door 1 | . . 1 . . . . . . Alert Level 2 | . 2 . . . . . . . Locate Traps 2 | . 1 . . . 1 . . . Dispatch Records 1 | . . . . . 1 . . . Zone Layout 4 | . 2 . . . . 2 . . EX-Prototype ID Bank 1 | . . . 1 . . . . . Fabricator Hacks . | . . . . . . . . . Repair Station Hacks . | . . . . . . . . . Recycling Unit Hacks . | . . . . . . . . . Scanalyzer . | . . . . . . . . . Garrison Access Hacks 1 | . . . . . . 1 . . Unlock Access 1 | . . . . . . 1 . . Unauthorized Hacks . | . . . . . . . . . Terminals . | . . . . . . . . . Fabricators . | . . . . . . . . . Repair Stations . | . . . . . . . . . Recycling Units . | . . . . . . . . . Scanalyzers . | . . . . . . . . . Garrison Access . | . . . . . . . . . Data Cores Recovered 1 | . . . . . 1 . . . Used 1 | . . . . . 1 . . . Hacking Detections 6 | . 2 . . . 1 2 . 1 Full Trace Events 2 | . . . . . . 1 . 1 Feedback Events . | . . . . . . . . . Feedback Blocked . | . . . . . . . . . Robot Schematics Acquired . | . . . . . . . . . Robots Built . | . . . . . . . . . Matter . | . . . . . . . . . Time . | . . . . . . . . . Total Robot Build Rating . | . . . . . . . . . Part Schematics Acquired . | . . . . . . . . . Parts Built . | . . . . . . . . . Matter . | . . . . . . . . . Time . | . . . . . . . . . Total Part Build Rating . | . . . . . . . . . Parts Repaired . | . . . . . . . . . Time . | . . . . . . . . . Parts Recycled . | . . . . . . . . . Recycled Matter . | . . . . . . . . . Retrieved Matter . | . . . . . . . . . Retrieved Components . | . . . . . . . . . Parts Scanalyzed . | . . . . . . . . . Part Schematics Acquired . | . . . . . . . . . Parts Damaged . | . . . . . . . . . Bothacking | -11 -10 -10 -10 -9 -8 -7 -7 -7 ------------ Run | Scr Mat Min Exi Min Mat Fac Gar Fac Used RIF Installer 1 | . . . . . . . 1 . Robots Hacked . | . . . . . . . . . Non-combat . | . . . . . . . . . Combat . | . . . . . . . . . Robot Hacks Applied . | . . . . . . . . . Relay Couplers Released 2 | . . . . . . . . 2 Machine Destruction 2 | . . . . . . . . 2 Attached 1 | . . . . . . . . 1 Robots Rewired . | . . . . . . . . . Allies Hacked . | . . . . . . . . . Hacks Repelled . | . . . . . . . . . Allies | -11 -10 -10 -10 -9 -8 -7 -7 -7 -------- Run | Scr Mat Min Exi Min Mat Fac Gar Fac Total Allies . | . . . . . . . . . Largest Group . | . . . . . . . . . Highest-Rated Group . | . . . . . . . . . Highest-Rated Ally . | . . . . . . . . . Total Orders . | . . . . . . . . . Ally Attacks . | . . . . . . . . . Total Damage . | . . . . . . . . . Kills . | . . . . . . . . . Allies Corrupted . | . . . . . . . . . Allies Melted . | . . . . . . . . . Intel | -11 -10 -10 -10 -9 -8 -7 -7 -7 ------- Run | Scr Mat Min Exi Min Mat Fac Gar Fac Robot Analysis Total . | . . . . . . . . . Derelict Logs Recovered 2 | . . 1 . 1 . . . . Drone Launches . | . . . . . . . . . Drone Recoveries . | . . . . . . . . . Exploration | -11 -10 -10 -10 -9 -8 -7 -7 -7 ------------- Run | Scr Mat Min Exi Min Mat Fac Gar Fac Turns Passed 3857 | 53 351 486 390 473 477 841 288 498 Spaces Moved 2101 | 38 223 315 262 227 241 483 150 162 Core 23 | 19 . . . . . . . 4 Treads 621 | . . . 146 227 175 73 . . Legs 886 | 19 223 315 116 . . . 55 158 Wheels 571 | . . . . . 66 410 95 . Hover . | . . . . . . . . . Flight . | . . . . . . . . . Fastest Speed 50 | 50 120 120 120 157 140 110 110 150 Average Speed 140 | 106 120 137 140 165 166 120 124 179 Slowest Speed 850 | 200 120 150 157 177 177 177 180 850 Overloaded Moves . | . . . . . . . . . Propulsion Burnouts . | . . . . . . . . . Robots Hopped . | . . . . . . . . . Cave-ins Triggered . | . . . . . . . . . Exploration Rate (%) 34 | 5 43 50 62 60 26 17 36 7 Regions Visited 8 Branch Regions 3 Pre-discovered Areas 1 | . . 1 . . . . . . Known Exits Taken 2 | . . . . . 1 1 . . Unknown Exits Taken 5 | 1 1 1 1 1 . . . . Scrap Searched 4 | . . 1 . 3 . . . . Spaces Dug . | . . . . . . . . . Terrain Destroyed . | . . . . . . . . . Melee . | . . . . . . . . . Projectile . | . . . . . . . . . AOE . | . . . . . . . . . Actions | -11 -10 -10 -10 -9 -8 -7 -7 -7 --------- Run | Scr Mat Min Exi Min Mat Fac Gar Fac Total 2823 | 47 283 348 283 298 290 687 233 354 Wait 474 | . 34 4 18 28 16 145 67 162 Move 2094 | 37 222 314 261 226 240 482 150 162 Hop . | . . . . . . . . . Pick Up 37 | 4 6 4 . 6 1 5 . 11 Fast Attach 10 | 6 . 2 1 1 . . . . Attach 21 | . 3 . . . 4 2 5 7 Detach . | . . . . . . . . . Swap 26 | . 1 4 2 4 6 8 . 1 Drop 22 | . 3 8 1 5 . 5 . . Fire 128 | . 14 12 . 28 23 40 10 1 Melee 10 | . . . . . . . . 10 Ram . | . . . . . . . . . Kick 1 | . . . . . . . 1 . Crush . | . . . . . . . . . Escape Stasis . | . . . . . . . . . Rewire . | . . . . . . . . . Trap . | . . . . . . . . . Miscellaneous . | . . . . . . . . . Route ------- -11/Scrapyard -10/Materials (discovered 3 exits: [*Mat x2] / *Min) -10/Mines -10/Exiles -9/Mines -8/Materials (discovered 2 exits: *Fac x2) -7/Factory -7/Garrison -7/Factory History --------- Turn | Location | Event 13 | -11/Scrapyard | Discovered new exit (range 15) 54 | -11/Scrapyard | Entered Materials 249 | -10/Materials | Discovered new exit (range 10) 302 | -10/Materials | Build established: Mutant 372 | -10/Materials | Discovered new exit (range 14) 372 | -10/Materials | Discovered new exit (range 15) 405 | -10/Materials | Entered Mines 500 | -10/Mines | Joined a pair of Derelicts in attacking an 0b10 outpost 730 | -10/Mines | Met a Derelict shopkeep closing up shop 824 | -10/Mines | Build established: Scavenger-Mutant 878 | -10/Mines | Found a hidden stash of uninstalled traps 886 | -10/Mines | Deemed a non-threat by the Exiles lab entrance 886 | -10/Mines | Discovered new exit (range 5) 891 | -10/Mines | Entered Exiles 920 | -10/Exiles | Met 8R-AWN 942 | -10/Exiles | Met EX-HEX 975 | -10/Exiles | Met EX-BIN 992 | -10/Exiles | Aligned with FarCom system 993 | -10/Exiles | Given EX-Vault access code 1021 | -10/Exiles | Opened EX-Vault 1031 | -10/Exiles | Found Gui. Plasma Cannon 1069 | -10/Exiles | Warned to stay clear of 0b10 Research branches 1087 | -10/Exiles | Exiles lab attacked by MAIN.C 1267 | -10/Exiles | Discovered new exit (range 10) 1281 | -10/Exiles | Left Exiles lab with Gui. Plasma Cannon 1281 | -10/Exiles | Entered Mines 1282 | -9/Mines | Assembled infested the area 1287 | -9/Mines | Assisted by a Guerilla fighting off Assembled 1335 | -9/Mines | Build established: Mutant 1720 | -9/Mines | Discovered new exit (range 9) 1754 | -9/Mines | Entered Materials 1754 | -8/Materials | Evolved 4 slots: Power x1, Propulsion x1, Utility x2 1755 | -8/Materials | Identified exit to Factory 2048 | -8/Materials | Build established: Scavenger-Mutant 2138 | -8/Materials | Discovered exit to Factory (range 16) 2231 | -8/Materials | Entered Factory 2231 | -7/Factory | Evolved 2 slots: Propulsion x1, Utility x1 2668 | -7/Factory | Build established: Mutant 2840 | -7/Factory | Garrison activated, responded to threat 3071 | -7/Factory | Identified exit to Garrison 3072 | -7/Factory | Entered Garrison 3244 | -7/Garrison | Triggered checkpoint 3315 | -7/Garrison | Lost 10 parts (2p4n1u3w) 3336 | -7/Garrison | Discovered new exit (range 8) 3354 | -7/Garrison | Installed Relay Interface Framework 3360 | -7/Garrison | Entered Factory 3809 | -7/Factory | Core integrity fell below 50% 3838 | -7/Factory | System corruption reached 10% 3843 | -7/Factory | Core integrity fell below 20% 3858 | -7/Factory | Destroyed by G-50 Soldier with Heavy Laser Last Messages --------------- 03823_ U-05 Engineer lays Concrete. 03825_ U-05 Engineer repairs door. 03830_ R-06 Scavenger collects Wheel. 03833_ R-06 Scavenger collects Mining Laser. 03836_ System corrupted: Chainsword targeting data glitched. 03837_ Transmission Jammer destroyed. 03837_ System corrupted by crushing effect (+4). 03837_ Knocked back. 03839_ G-47 Trooper suffers critical hit. 03839_ Destroyed Lgt. Nuclear Core. 03841_ G-47 Trooper destroyed. 03845_ R-06 Scavenger collects Imp. Heat Sink. 03846_ B-48 Gladiator destroyed. 03848_ R-06 Scavenger collects Lgt. Treads. 03849_ Acquired 53 matter. 03850_ R-06 Scavenger collects Mace. 03852_ R-06 Scavenger collects Imp. Light Armor Plating. 03853_ R-06 Scavenger collects Rnf. Deuterium Engine. 03856_ System corrupted: Energy discharge (-20). 03857_ Carbon-fiber Leg severed. Map ----- +----------------------------------------------------+ | | | ?????????????????????????????????????????????????? | | ?????????????????????????????????????????????????? | | ?????????????????????????????????????????????????? | | ?????????????????????????????????????????????????? | | ?????????????????????????????????????????????????? | | ?????????????????????????????????????????????????? | | ?????????????????????????????????????????????????? | | ????????????????##???????????????????????????????? | | ????????????#### ???????????????????????????????? | | ???????????? #########???????????????????????? | | ????????????# # #???????????????????????? | | ????????????# # #???????????????????????? | | ????????????# # #???????????????????????? | | ???????????## #? #???????????????????????? | | ???????????? # * #???????????????????????? | | ????????????# # ????????????????????????? | | ????????????# # ????????????????????????? | | ????????????# # ?????????????????????????? | | ????????????# # | h?????????????????????????? | | ????????????# # !% ??????????????????????????? | | ????????????# #? ??????????????????????????? | | ????????????# ####+#######????????????????????? | | ???#+##+#???# b #i #????????????????????? | | ???# ##### rr gg #????????????????????? | | ???# #"""# pg#%@ #????????????????????? | | ???# #"Y"# g # #????????????????????? | | ???# # [#????????????????????? | | #### #] #????????????????????? | | """ ########## #????????????????????? | | "Y #????????# #????????????????????? | | [ #????????# #????????????????????? | | """ #?######?######????????????????????? | | """ #? #???????????????????????????? | | """ # """ #???????????????????????????? | | # "Y" #???????????????????????????? | | / #???????????????????????????? | | ####+######## # #???????????????????????????? | | #?# * # # ] ! #???????????????????????????? | | #?# "" # #?######???????????????????????????? | | #?# """ T" # #??????????????????????????????????? | | ?# """ "" # #??????????????????????????????????? | | + """ / #??????????????????????????????????? | | ## ! # #??????????????????????????????????? | | ### # #??????????????????????????????????? | | ??# # #??????????????????????????????????? | | ??########### #??????????????????????????????????? | | ????????????# #??????????????????????????????????? | | ????????????# #??????????????????????????????????? | | ????????????# #??????????????????????????????????? | +----------------------------------------------------+ Best States ------------- Heat Dissipation 48 Energy Generation 29 Energy Capacity 480 Matter Stores 300 Matter Capacity 300 Sight Range 22 Robot Scan Range 10 Terrain Scan Range 14 Terrain Scan Density 10 Jamming Range 8 Armor Coverage 375 Resistance: KI 20 Resistance: TH 20 Resistance: EX 20 Resistance: EM 20 Resistance: I 20 Resistance: S 20 Resistance: P 20 Phase Shifting 5 Evasion (%) 50 Recoil Reduction 2 Item Schematics ----------------- None Robot Schematics ------------------ None Fabricated ------------ Nothing Alien Tech Used ----------------- None Achievements -------------- Dynamic Key Challenges ------------ None Game ------ Seed Arcana Manual? 1 Play Time 00:51:50 Cumulative 18.4 hours Start 2019.12.15 @ 18:29:09 End 2019.12.15 @ 19:42:19 Sessions 1 Manual Loads 0 Difficulty Adventurer Special Mode None Game No. 12 Rogue 0 Adventurer 12 Explorer 0 Win Type - Total 0 Types 0/0/0/0/0/0/0 Lore% 26 Gallery% 36 Achievement% 31 Wizard Run 0 Options --------- ASCII 0 Keyboard 0 Movement Mouse Keybinds 0 Fullscreen 2 Font 14/Cog Map View 72x54 Tactical HUD 1 Map Filters NONE Filters NONE Steam 1 RUN: cc8c4308-0f25-4303-9742-bbcee97656f0